{"text_format":"3","workbook":"xlsx","n_sheets":4,"sheets":["DOELEN","DIEET","OEFENINGEN","Grafiekberekeningen"],"not_rendered":{"charts":2,"defined_names":19},"read":"whole","date_system":"1900"}

{"sheet":"DOELEN","index":0,"n_rows":16,"n_cols":11,"rows_kept":16,"merged":[[2,1,3,1],[7,1,8,1]]}
[null,{"$f":"TODAY()","v":"2017-05-11"},"DOELEN",{"$nulls":6},"Oefeningen","Dieet"]
[null,"BEGINDATUM","DIEET- EN OEFENINGENLOGBOEK"]
[null,{"$f":"StartDate+121","v":"2017-09-09"},"DIEETANALYSE"]
[]
[null,"EINDDATUM"]
[null,{"v":100,"d":"100.00"}]
[null,"BEGINGEWICHT"]
[null,{"v":80,"d":"80.00"},"OEFENINGENANALYSE"]
[]
[null,"EINDGEWICHT"]
[null,{"$f":"StartWeight-EndWeight","v":20}]
[null,"TE VERLIEZEN GEWICHT"]
[null,{"$f":"EndDate-StartDate","v":121}]
[null,"AANTAL DAGEN VOOR GEWICHTSVERLIES"]
[null,{"$f":"WeightGoal/B13","v":{"v":0.1652892561983471,"d":"0.17"}}]
[null,"GEWICHTSVERLIES PER DAG"]

{"sheet":"DIEET","index":1,"n_rows":19,"n_cols":9,"rows_kept":19}
[null,"DIEET",{"$nulls":4},"Doelen","Oefeningen"]
[null,{"$f":"Ondertitel","v":"DIEET- EN OEFENINGENLOGBOEK"}]
[null,"DATUM","TIJD","BESCHRIJVING","CALORIEËN","KOOLHYDRATEN","EIWIT","VET","NOTITIES"]
[null,{"$f":"StartDate","v":"2017-05-11"},"07:00:00","Koffie",1,0,0,0,"Koffie"]
[null,{"$f":"StartDate","v":"2017-05-11"},"08:00:00","Broodje",10,10,2,10,"Licht ontbijt"]
[null,{"$f":"StartDate","v":"2017-05-11"},"12:00:00","Lunch",283,46,18,{"v":3.5,"d":"4"},"Boterham met kalkoen"]
[null,{"$f":"StartDate","v":"2017-05-11"},"19:00:00","Avondeten",500,42,35,25,"Aardappelschotel"]
[null,{"$f":"StartDate+1","v":"2017-05-12"},"07:00:00","Koffie",1,0,0,0,"Koffie"]
[null,{"$f":"StartDate+1","v":"2017-05-12"},"08:00:00","Geroosterd brood",10,10,2,10,"Licht ontbijt"]
[null,{"$f":"StartDate+1","v":"2017-05-12"},"12:00:00","Lunch",189,26,3,8,"Boterham"]
[null,{"$f":"StartDate+1","v":"2017-05-12"},"19:00:00","Avondeten",477,62,{"v":13.5,"d":"14"},21,"Avondeten"]
[null,{"$f":"StartDate+2","v":"2017-05-13"},"07:00:00","Koffie",1,0,0,0,"Koffie"]
[null,{"$f":"StartDate+2","v":"2017-05-13"},"08:00:00","Broodje",245,48,10,{"v":1.5,"d":"2"},"Licht ontbijt"]
[null,{"$f":"StartDate+2","v":"2017-05-13"},"12:00:00","Lunch",247,11,43,5,"Salade"]
[null,{"$f":"StartDate+2","v":"2017-05-13"},"19:00:00","Avondeten",456,64,32,22,"Avondeten"]
[null,{"$f":"StartDate+3","v":"2017-05-14"},"07:00:00","Geroosterd brood",10,10,2,10,"Licht ontbijt"]
[null,{"$f":"StartDate+3","v":"2017-05-14"},"10:00:00","Koffie",135,{"v":12.36,"d":"12"},{"v":8.81,"d":"9"},{"v":5.51,"d":"6"},"Koffie met melk"]
[null,{"$f":"StartDate+3","v":"2017-05-14"},"12:15:00","Lunch",184,7,{"v":5.43,"d":"5"},15,"Salade"]
[null,{"$f":"StartDate+5","v":"2017-05-16"},"19:00:00","Avondeten",477,62,{"v":13.5,"d":"14"},21,"Avondeten"]

{"sheet":"OEFENINGEN","index":2,"n_rows":20,"n_cols":7,"rows_kept":20}
[null,"OEFENINGEN",{"$nulls":3},"Dieet","Doelen"]
[null,{"$f":"Ondertitel","v":"DIEET- EN OEFENINGENLOGBOEK"}]
[null,"DATUM","DUUR (MIN.)","VERBRANDE CALORIEËN","NOTITIES"]
[null,{"$f":"StartDate+4","v":"2017-05-15"},30,120,"Loopbandtraining"]
[null,{"$f":"B4+1","v":"2017-05-16"},60,180,"Low impact aerobics"]
[null,{"$f":"B5+1","v":"2017-05-17"},60,350,"Zware training"]
[null,"2017-05-18",30,150,"Loopbandtraining"]
[null,{"$f":"B7+1","v":"2017-05-19"},25,125,"Hardlopen"]
[null,"2017-05-20",20,285,"Loopbandtraining"]
[null,"2017-05-21",40,205,"Hardlopen"]
[null,"2017-05-22",30,335,"Hardlopen"]
[null,"2017-05-23",40,175,"Hardlopen"]
[null,"2017-05-24",45,325,"Loopbandtraining"]
[null,"2017-05-25",40,270,"Hardlopen"]
[null,"2017-05-26",20,295,"Loopbandtraining"]
[null,"2017-05-27",45,350,"Hardlopen"]
[null,"2017-05-28",35,320,"Hardlopen"]
[null,"2017-05-29",40,290,"Hardlopen"]
[null,{"$f":"B18+1","v":"2017-05-30"},25,265,"Loopbandtraining"]
[null,"2017-05-31",20,195,"Hardlopen"]

{"sheet":"Grafiekberekeningen","index":3,"n_rows":36,"n_cols":10,"rows_kept":36,"hidden":true,"merged":[[1,1,1,9],[19,1,19,9]]}
[]
[null,"GRAFIEKGEGEVENS DIEETANALYSE"]
[]
[null,"Beginrij",{"$f":"ROW(Dieet[[#Headers],[DATUM]])+1","v":4},"DATUM","DAG","VET","EIWIT","KOOLHYDRATEN","CALORIEËN","Getal"]
[null,"Laatste dieetinvoer",{"$f":"MATCH(9.99E+307,Dieet[DATUM])+DietRowStart-1","v":19},{"$f":"IFERROR(IF(INDEX(Dieet[],DietLastEnd-DietRowStart-J5,1)<>\"\",INDEX(Dieet[],DietLastEnd-DietRowStart-J5,1),\"\"),\"\")","v":"2017-05-11"},{"$f":"UPPER(TEXT(D5,\"DDD\"))","v":"DO"},{"$f":"IFERROR((IF(INDEX(Dieet[],DietLastEnd-DietRowStart-J5,1)<>\"\",INDEX(Dieet[],DietLastEnd-DietRowStart-J5,7),NA())),NA())","v":3.5},{"$f":"IFERROR((IF(INDEX(Dieet[],DietLastEnd-DietRowStart-J5,1)<>\"\",INDEX(Dieet[],DietLastEnd-DietRowStart-J5,6),NA())),NA())","v":18},{"$f":"IFERROR((IF(INDEX(Dieet[],DietLastEnd-DietRowStart-J5,1)<>\"\",INDEX(Dieet[],DietLastEnd-DietRowStart-J5,5),NA())),NA())","v":46},{"$f":"IFERROR((IF(INDEX(Dieet[],DietLastEnd-DietRowStart-J5,1)<>\"\",INDEX(Dieet[],DietLastEnd-DietRowStart-J5,4),NA())),NA())","v":283},12]
[{"$nulls":3},{"$f":"IFERROR(IF(INDEX(Dieet[],DietLastEnd-DietRowStart-J6,1)<>\"\",INDEX(Dieet[],DietLastEnd-DietRowStart-J6,1),\"\"),\"\")","v":"2017-05-11"},"DO",{"$f":"IFERROR((IF(INDEX(Dieet[],DietLastEnd-DietRowStart-J6,1)<>\"\",INDEX(Dieet[],DietLastEnd-DietRowStart-J6,7),NA())),NA())","v":25},{"$f":"IFERROR((IF(INDEX(Dieet[],DietLastEnd-DietRowStart-J6,1)<>\"\",INDEX(Dieet[],DietLastEnd-DietRowStart-J6,6),NA())),NA())","v":35},{"$f":"IFERROR((IF(INDEX(Dieet[],DietLastEnd-DietRowStart-J6,1)<>\"\",INDEX(Dieet[],DietLastEnd-DietRowStart-J6,5),NA())),NA())","v":42},{"$f":"IFERROR((IF(INDEX(Dieet[],DietLastEnd-DietRowStart-J6,1)<>\"\",INDEX(Dieet[],DietLastEnd-DietRowStart-J6,4),NA())),NA())","v":500},11]
[{"$nulls":3},{"$f":"IFERROR(IF(INDEX(Dieet[],DietLastEnd-DietRowStart-J7,1)<>\"\",INDEX(Dieet[],DietLastEnd-DietRowStart-J7,1),\"\"),\"\")","v":"2017-05-12"},"VR",{"$f":"IFERROR((IF(INDEX(Dieet[],DietLastEnd-DietRowStart-J7,1)<>\"\",INDEX(Dieet[],DietLastEnd-DietRowStart-J7,7),NA())),NA())","v":0},{"$f":"IFERROR((IF(INDEX(Dieet[],DietLastEnd-DietRowStart-J7,1)<>\"\",INDEX(Dieet[],DietLastEnd-DietRowStart-J7,6),NA())),NA())","v":0},{"$f":"IFERROR((IF(INDEX(Dieet[],DietLastEnd-DietRowStart-J7,1)<>\"\",INDEX(Dieet[],DietLastEnd-DietRowStart-J7,5),NA())),NA())","v":0},{"$f":"IFERROR((IF(INDEX(Dieet[],DietLastEnd-DietRowStart-J7,1)<>\"\",INDEX(Dieet[],DietLastEnd-DietRowStart-J7,4),NA())),NA())","v":1},10]
[{"$nulls":3},{"$f":"IFERROR(IF(INDEX(Dieet[],DietLastEnd-DietRowStart-J8,1)<>\"\",INDEX(Dieet[],DietLastEnd-DietRowStart-J8,1),\"\"),\"\")","v":"2017-05-12"},"VR",{"$f":"IFERROR((IF(INDEX(Dieet[],DietLastEnd-DietRowStart-J8,1)<>\"\",INDEX(Dieet[],DietLastEnd-DietRowStart-J8,7),NA())),NA())","v":10},{"$f":"IFERROR((IF(INDEX(Dieet[],DietLastEnd-DietRowStart-J8,1)<>\"\",INDEX(Dieet[],DietLastEnd-DietRowStart-J8,6),NA())),NA())","v":2},{"$f":"IFERROR((IF(INDEX(Dieet[],DietLastEnd-DietRowStart-J8,1)<>\"\",INDEX(Dieet[],DietLastEnd-DietRowStart-J8,5),NA())),NA())","v":10},{"$f":"IFERROR((IF(INDEX(Dieet[],DietLastEnd-DietRowStart-J8,1)<>\"\",INDEX(Dieet[],DietLastEnd-DietRowStart-J8,4),NA())),NA())","v":10},9]
[{"$nulls":3},{"$f":"IFERROR(IF(INDEX(Dieet[],DietLastEnd-DietRowStart-J9,1)<>\"\",INDEX(Dieet[],DietLastEnd-DietRowStart-J9,1),\"\"),\"\")","v":"2017-05-12"},"VR",{"$f":"IFERROR((IF(INDEX(Dieet[],DietLastEnd-DietRowStart-J9,1)<>\"\",INDEX(Dieet[],DietLastEnd-DietRowStart-J9,7),NA())),NA())","v":8},{"$f":"IFERROR((IF(INDEX(Dieet[],DietLastEnd-DietRowStart-J9,1)<>\"\",INDEX(Dieet[],DietLastEnd-DietRowStart-J9,6),NA())),NA())","v":3},{"$f":"IFERROR((IF(INDEX(Dieet[],DietLastEnd-DietRowStart-J9,1)<>\"\",INDEX(Dieet[],DietLastEnd-DietRowStart-J9,5),NA())),NA())","v":26},{"$f":"IFERROR((IF(INDEX(Dieet[],DietLastEnd-DietRowStart-J9,1)<>\"\",INDEX(Dieet[],DietLastEnd-DietRowStart-J9,4),NA())),NA())","v":189},8]
[{"$nulls":3},{"$f":"IFERROR(IF(INDEX(Dieet[],DietLastEnd-DietRowStart-J10,1)<>\"\",INDEX(Dieet[],DietLastEnd-DietRowStart-J10,1),\"\"),\"\")","v":"2017-05-12"},"VR",{"$f":"IFERROR((IF(INDEX(Dieet[],DietLastEnd-DietRowStart-J10,1)<>\"\",INDEX(Dieet[],DietLastEnd-DietRowStart-J10,7),NA())),NA())","v":21},{"$f":"IFERROR((IF(INDEX(Dieet[],DietLastEnd-DietRowStart-J10,1)<>\"\",INDEX(Dieet[],DietLastEnd-DietRowStart-J10,6),NA())),NA())","v":13.5},{"$f":"IFERROR((IF(INDEX(Dieet[],DietLastEnd-DietRowStart-J10,1)<>\"\",INDEX(Dieet[],DietLastEnd-DietRowStart-J10,5),NA())),NA())","v":62},{"$f":"IFERROR((IF(INDEX(Dieet[],DietLastEnd-DietRowStart-J10,1)<>\"\",INDEX(Dieet[],DietLastEnd-DietRowStart-J10,4),NA())),NA())","v":477},7]
[{"$nulls":3},{"$f":"IFERROR(IF(INDEX(Dieet[],DietLastEnd-DietRowStart-J11,1)<>\"\",INDEX(Dieet[],DietLastEnd-DietRowStart-J11,1),\"\"),\"\")","v":"2017-05-13"},"ZA",{"$f":"IFERROR((IF(INDEX(Dieet[],DietLastEnd-DietRowStart-J11,1)<>\"\",INDEX(Dieet[],DietLastEnd-DietRowStart-J11,7),NA())),NA())","v":0},{"$f":"IFERROR((IF(INDEX(Dieet[],DietLastEnd-DietRowStart-J11,1)<>\"\",INDEX(Dieet[],DietLastEnd-DietRowStart-J11,6),NA())),NA())","v":0},{"$f":"IFERROR((IF(INDEX(Dieet[],DietLastEnd-DietRowStart-J11,1)<>\"\",INDEX(Dieet[],DietLastEnd-DietRowStart-J11,5),NA())),NA())","v":0},{"$f":"IFERROR((IF(INDEX(Dieet[],DietLastEnd-DietRowStart-J11,1)<>\"\",INDEX(Dieet[],DietLastEnd-DietRowStart-J11,4),NA())),NA())","v":1},6]
[{"$nulls":3},{"$f":"IFERROR(IF(INDEX(Dieet[],DietLastEnd-DietRowStart-J12,1)<>\"\",INDEX(Dieet[],DietLastEnd-DietRowStart-J12,1),\"\"),\"\")","v":"2017-05-13"},"ZA",{"$f":"IFERROR((IF(INDEX(Dieet[],DietLastEnd-DietRowStart-J12,1)<>\"\",INDEX(Dieet[],DietLastEnd-DietRowStart-J12,7),NA())),NA())","v":1.5},{"$f":"IFERROR((IF(INDEX(Dieet[],DietLastEnd-DietRowStart-J12,1)<>\"\",INDEX(Dieet[],DietLastEnd-DietRowStart-J12,6),NA())),NA())","v":10},{"$f":"IFERROR((IF(INDEX(Dieet[],DietLastEnd-DietRowStart-J12,1)<>\"\",INDEX(Dieet[],DietLastEnd-DietRowStart-J12,5),NA())),NA())","v":48},{"$f":"IFERROR((IF(INDEX(Dieet[],DietLastEnd-DietRowStart-J12,1)<>\"\",INDEX(Dieet[],DietLastEnd-DietRowStart-J12,4),NA())),NA())","v":245},5]
[{"$nulls":3},{"$f":"IFERROR(IF(INDEX(Dieet[],DietLastEnd-DietRowStart-J13,1)<>\"\",INDEX(Dieet[],DietLastEnd-DietRowStart-J13,1),\"\"),\"\")","v":"2017-05-13"},"ZA",{"$f":"IFERROR((IF(INDEX(Dieet[],DietLastEnd-DietRowStart-J13,1)<>\"\",INDEX(Dieet[],DietLastEnd-DietRowStart-J13,7),NA())),NA())","v":5},{"$f":"IFERROR((IF(INDEX(Dieet[],DietLastEnd-DietRowStart-J13,1)<>\"\",INDEX(Dieet[],DietLastEnd-DietRowStart-J13,6),NA())),NA())","v":43},{"$f":"IFERROR((IF(INDEX(Dieet[],DietLastEnd-DietRowStart-J13,1)<>\"\",INDEX(Dieet[],DietLastEnd-DietRowStart-J13,5),NA())),NA())","v":11},{"$f":"IFERROR((IF(INDEX(Dieet[],DietLastEnd-DietRowStart-J13,1)<>\"\",INDEX(Dieet[],DietLastEnd-DietRowStart-J13,4),NA())),NA())","v":247},4]
[{"$nulls":3},{"$f":"IFERROR(IF(INDEX(Dieet[],DietLastEnd-DietRowStart-J14,1)<>\"\",INDEX(Dieet[],DietLastEnd-DietRowStart-J14,1),\"\"),\"\")","v":"2017-05-13"},"ZA",{"$f":"IFERROR((IF(INDEX(Dieet[],DietLastEnd-DietRowStart-J14,1)<>\"\",INDEX(Dieet[],DietLastEnd-DietRowStart-J14,7),NA())),NA())","v":22},{"$f":"IFERROR((IF(INDEX(Dieet[],DietLastEnd-DietRowStart-J14,1)<>\"\",INDEX(Dieet[],DietLastEnd-DietRowStart-J14,6),NA())),NA())","v":32},{"$f":"IFERROR((IF(INDEX(Dieet[],DietLastEnd-DietRowStart-J14,1)<>\"\",INDEX(Dieet[],DietLastEnd-DietRowStart-J14,5),NA())),NA())","v":64},{"$f":"IFERROR((IF(INDEX(Dieet[],DietLastEnd-DietRowStart-J14,1)<>\"\",INDEX(Dieet[],DietLastEnd-DietRowStart-J14,4),NA())),NA())","v":456},3]
[{"$nulls":3},{"$f":"IFERROR(IF(INDEX(Dieet[],DietLastEnd-DietRowStart-J15,1)<>\"\",INDEX(Dieet[],DietLastEnd-DietRowStart-J15,1),\"\"),\"\")","v":"2017-05-14"},"ZO",{"$f":"IFERROR((IF(INDEX(Dieet[],DietLastEnd-DietRowStart-J15,1)<>\"\",INDEX(Dieet[],DietLastEnd-DietRowStart-J15,7),NA())),NA())","v":10},{"$f":"IFERROR((IF(INDEX(Dieet[],DietLastEnd-DietRowStart-J15,1)<>\"\",INDEX(Dieet[],DietLastEnd-DietRowStart-J15,6),NA())),NA())","v":2},{"$f":"IFERROR((IF(INDEX(Dieet[],DietLastEnd-DietRowStart-J15,1)<>\"\",INDEX(Dieet[],DietLastEnd-DietRowStart-J15,5),NA())),NA())","v":10},{"$f":"IFERROR((IF(INDEX(Dieet[],DietLastEnd-DietRowStart-J15,1)<>\"\",INDEX(Dieet[],DietLastEnd-DietRowStart-J15,4),NA())),NA())","v":10},2]
[{"$nulls":3},{"$f":"IFERROR(IF(INDEX(Dieet[],DietLastEnd-DietRowStart-J16,1)<>\"\",INDEX(Dieet[],DietLastEnd-DietRowStart-J16,1),\"\"),\"\")","v":"2017-05-14"},"ZO",{"$f":"IFERROR((IF(INDEX(Dieet[],DietLastEnd-DietRowStart-J16,1)<>\"\",INDEX(Dieet[],DietLastEnd-DietRowStart-J16,7),NA())),NA())","v":5.51},{"$f":"IFERROR((IF(INDEX(Dieet[],DietLastEnd-DietRowStart-J16,1)<>\"\",INDEX(Dieet[],DietLastEnd-DietRowStart-J16,6),NA())),NA())","v":8.81},{"$f":"IFERROR((IF(INDEX(Dieet[],DietLastEnd-DietRowStart-J16,1)<>\"\",INDEX(Dieet[],DietLastEnd-DietRowStart-J16,5),NA())),NA())","v":12.36},{"$f":"IFERROR((IF(INDEX(Dieet[],DietLastEnd-DietRowStart-J16,1)<>\"\",INDEX(Dieet[],DietLastEnd-DietRowStart-J16,4),NA())),NA())","v":135},1]
[{"$nulls":3},{"$f":"IFERROR(IF(INDEX(Dieet[],DietLastEnd-DietRowStart-J17,1)<>\"\",INDEX(Dieet[],DietLastEnd-DietRowStart-J17,1),\"\"),\"\")","v":"2017-05-14"},"ZO",{"$f":"IFERROR((IF(INDEX(Dieet[],DietLastEnd-DietRowStart-J17,1)<>\"\",INDEX(Dieet[],DietLastEnd-DietRowStart-J17,7),NA())),NA())","v":15},{"$f":"IFERROR((IF(INDEX(Dieet[],DietLastEnd-DietRowStart-J17,1)<>\"\",INDEX(Dieet[],DietLastEnd-DietRowStart-J17,6),NA())),NA())","v":5.43},{"$f":"IFERROR((IF(INDEX(Dieet[],DietLastEnd-DietRowStart-J17,1)<>\"\",INDEX(Dieet[],DietLastEnd-DietRowStart-J17,5),NA())),NA())","v":7},{"$f":"IFERROR((IF(INDEX(Dieet[],DietLastEnd-DietRowStart-J17,1)<>\"\",INDEX(Dieet[],DietLastEnd-DietRowStart-J17,4),NA())),NA())","v":184},0]
[{"$nulls":3},{"$f":"IFERROR(IF(INDEX(Dieet[],DietLastEnd-DietRowStart-J18,1)<>\"\",INDEX(Dieet[],DietLastEnd-DietRowStart-J18,1),\"\"),\"\")","v":"2017-05-16"},"DI",{"$f":"IFERROR((IF(INDEX(Dieet[],DietLastEnd-DietRowStart-J18,1)<>\"\",INDEX(Dieet[],DietLastEnd-DietRowStart-J18,7),NA())),NA())","v":21},{"$f":"IFERROR((IF(INDEX(Dieet[],DietLastEnd-DietRowStart-J18,1)<>\"\",INDEX(Dieet[],DietLastEnd-DietRowStart-J18,6),NA())),NA())","v":13.5},{"$f":"IFERROR((IF(INDEX(Dieet[],DietLastEnd-DietRowStart-J18,1)<>\"\",INDEX(Dieet[],DietLastEnd-DietRowStart-J18,5),NA())),NA())","v":62},{"$f":"IFERROR((IF(INDEX(Dieet[],DietLastEnd-DietRowStart-J18,1)<>\"\",INDEX(Dieet[],DietLastEnd-DietRowStart-J18,4),NA())),NA())","v":477},-1]
[]
[null,"GRAFIEKGEGEVENS OEFENINGENANALYSE"]
[]
[null,"Beginrij",{"$f":"ROW(Oefeningen[[#Headers],[DATUM]])+1","v":4},"DATUM","DAG","DUUR (MIN.)","VERBRANDE CALORIEEN","Getal"]
[null,"Laatste oefeninginvoer",{"$f":"MATCH(9.99E+307,Oefeningen[DATUM])+ExerciseRowStart-1","v":20},{"$f":"IFERROR(IF(INDEX(Oefeningen[],ExerciseLastEnd-ExerciseRowStart-H23,1)<>\"\",INDEX(Oefeningen[],ExerciseLastEnd-ExerciseRowStart-H23,1)),\"\")","v":"2017-05-31"},{"$f":"UPPER(TEXT(D23,\"DDD\"))","v":"WO"},{"$f":"IFERROR((IF(INDEX(Oefeningen[],ExerciseLastEnd-ExerciseRowStart-H23,1)<>\"\",INDEX(Oefeningen[],ExerciseLastEnd-ExerciseRowStart-H23,2),0)),0)","v":20},{"$f":"IFERROR((IF(INDEX(Oefeningen[],ExerciseLastEnd-ExerciseRowStart-H23,2)<>\"\",INDEX(Oefeningen[],ExerciseLastEnd-ExerciseRowStart-H23,3),0)),0)","v":195},-1]
[{"$nulls":3},{"$f":"IFERROR(IF(INDEX(Oefeningen[],ExerciseLastEnd-ExerciseRowStart-H24,1)<>\"\",INDEX(Oefeningen[],ExerciseLastEnd-ExerciseRowStart-H24,1)),\"\")","v":"2017-05-30"},"DI",{"$f":"IFERROR((IF(INDEX(Oefeningen[],ExerciseLastEnd-ExerciseRowStart-H24,1)<>\"\",INDEX(Oefeningen[],ExerciseLastEnd-ExerciseRowStart-H24,2),0)),0)","v":25},{"$f":"IFERROR((IF(INDEX(Oefeningen[],ExerciseLastEnd-ExerciseRowStart-H24,2)<>\"\",INDEX(Oefeningen[],ExerciseLastEnd-ExerciseRowStart-H24,3),0)),0)","v":265},0]
[{"$nulls":3},{"$f":"IFERROR(IF(INDEX(Oefeningen[],ExerciseLastEnd-ExerciseRowStart-H25,1)<>\"\",INDEX(Oefeningen[],ExerciseLastEnd-ExerciseRowStart-H25,1)),\"\")","v":"2017-05-29"},"MA",{"$f":"IFERROR((IF(INDEX(Oefeningen[],ExerciseLastEnd-ExerciseRowStart-H25,1)<>\"\",INDEX(Oefeningen[],ExerciseLastEnd-ExerciseRowStart-H25,2),0)),0)","v":40},{"$f":"IFERROR((IF(INDEX(Oefeningen[],ExerciseLastEnd-ExerciseRowStart-H25,2)<>\"\",INDEX(Oefeningen[],ExerciseLastEnd-ExerciseRowStart-H25,3),0)),0)","v":290},1]
[{"$nulls":3},{"$f":"IFERROR(IF(INDEX(Oefeningen[],ExerciseLastEnd-ExerciseRowStart-H26,1)<>\"\",INDEX(Oefeningen[],ExerciseLastEnd-ExerciseRowStart-H26,1)),\"\")","v":"2017-05-28"},"ZO",{"$f":"IFERROR((IF(INDEX(Oefeningen[],ExerciseLastEnd-ExerciseRowStart-H26,1)<>\"\",INDEX(Oefeningen[],ExerciseLastEnd-ExerciseRowStart-H26,2),0)),0)","v":35},{"$f":"IFERROR((IF(INDEX(Oefeningen[],ExerciseLastEnd-ExerciseRowStart-H26,2)<>\"\",INDEX(Oefeningen[],ExerciseLastEnd-ExerciseRowStart-H26,3),0)),0)","v":320},2]
[{"$nulls":3},{"$f":"IFERROR(IF(INDEX(Oefeningen[],ExerciseLastEnd-ExerciseRowStart-H27,1)<>\"\",INDEX(Oefeningen[],ExerciseLastEnd-ExerciseRowStart-H27,1)),\"\")","v":"2017-05-27"},"ZA",{"$f":"IFERROR((IF(INDEX(Oefeningen[],ExerciseLastEnd-ExerciseRowStart-H27,1)<>\"\",INDEX(Oefeningen[],ExerciseLastEnd-ExerciseRowStart-H27,2),0)),0)","v":45},{"$f":"IFERROR((IF(INDEX(Oefeningen[],ExerciseLastEnd-ExerciseRowStart-H27,2)<>\"\",INDEX(Oefeningen[],ExerciseLastEnd-ExerciseRowStart-H27,3),0)),0)","v":350},3]
[{"$nulls":3},{"$f":"IFERROR(IF(INDEX(Oefeningen[],ExerciseLastEnd-ExerciseRowStart-H28,1)<>\"\",INDEX(Oefeningen[],ExerciseLastEnd-ExerciseRowStart-H28,1)),\"\")","v":"2017-05-26"},"VR",{"$f":"IFERROR((IF(INDEX(Oefeningen[],ExerciseLastEnd-ExerciseRowStart-H28,1)<>\"\",INDEX(Oefeningen[],ExerciseLastEnd-ExerciseRowStart-H28,2),0)),0)","v":20},{"$f":"IFERROR((IF(INDEX(Oefeningen[],ExerciseLastEnd-ExerciseRowStart-H28,2)<>\"\",INDEX(Oefeningen[],ExerciseLastEnd-ExerciseRowStart-H28,3),0)),0)","v":295},4]
[{"$nulls":3},{"$f":"IFERROR(IF(INDEX(Oefeningen[],ExerciseLastEnd-ExerciseRowStart-H29,1)<>\"\",INDEX(Oefeningen[],ExerciseLastEnd-ExerciseRowStart-H29,1)),\"\")","v":"2017-05-25"},"DO",{"$f":"IFERROR((IF(INDEX(Oefeningen[],ExerciseLastEnd-ExerciseRowStart-H29,1)<>\"\",INDEX(Oefeningen[],ExerciseLastEnd-ExerciseRowStart-H29,2),0)),0)","v":40},{"$f":"IFERROR((IF(INDEX(Oefeningen[],ExerciseLastEnd-ExerciseRowStart-H29,2)<>\"\",INDEX(Oefeningen[],ExerciseLastEnd-ExerciseRowStart-H29,3),0)),0)","v":270},5]
[{"$nulls":3},{"$f":"IFERROR(IF(INDEX(Oefeningen[],ExerciseLastEnd-ExerciseRowStart-H30,1)<>\"\",INDEX(Oefeningen[],ExerciseLastEnd-ExerciseRowStart-H30,1)),\"\")","v":"2017-05-24"},"WO",{"$f":"IFERROR((IF(INDEX(Oefeningen[],ExerciseLastEnd-ExerciseRowStart-H30,1)<>\"\",INDEX(Oefeningen[],ExerciseLastEnd-ExerciseRowStart-H30,2),0)),0)","v":45},{"$f":"IFERROR((IF(INDEX(Oefeningen[],ExerciseLastEnd-ExerciseRowStart-H30,2)<>\"\",INDEX(Oefeningen[],ExerciseLastEnd-ExerciseRowStart-H30,3),0)),0)","v":325},6]
[{"$nulls":3},{"$f":"IFERROR(IF(INDEX(Oefeningen[],ExerciseLastEnd-ExerciseRowStart-H31,1)<>\"\",INDEX(Oefeningen[],ExerciseLastEnd-ExerciseRowStart-H31,1)),\"\")","v":"2017-05-23"},"DI",{"$f":"IFERROR((IF(INDEX(Oefeningen[],ExerciseLastEnd-ExerciseRowStart-H31,1)<>\"\",INDEX(Oefeningen[],ExerciseLastEnd-ExerciseRowStart-H31,2),0)),0)","v":40},{"$f":"IFERROR((IF(INDEX(Oefeningen[],ExerciseLastEnd-ExerciseRowStart-H31,2)<>\"\",INDEX(Oefeningen[],ExerciseLastEnd-ExerciseRowStart-H31,3),0)),0)","v":175},7]
[{"$nulls":3},{"$f":"IFERROR(IF(INDEX(Oefeningen[],ExerciseLastEnd-ExerciseRowStart-H32,1)<>\"\",INDEX(Oefeningen[],ExerciseLastEnd-ExerciseRowStart-H32,1)),\"\")","v":"2017-05-22"},"MA",{"$f":"IFERROR((IF(INDEX(Oefeningen[],ExerciseLastEnd-ExerciseRowStart-H32,1)<>\"\",INDEX(Oefeningen[],ExerciseLastEnd-ExerciseRowStart-H32,2),0)),0)","v":30},{"$f":"IFERROR((IF(INDEX(Oefeningen[],ExerciseLastEnd-ExerciseRowStart-H32,2)<>\"\",INDEX(Oefeningen[],ExerciseLastEnd-ExerciseRowStart-H32,3),0)),0)","v":335},8]
[{"$nulls":3},{"$f":"IFERROR(IF(INDEX(Oefeningen[],ExerciseLastEnd-ExerciseRowStart-H33,1)<>\"\",INDEX(Oefeningen[],ExerciseLastEnd-ExerciseRowStart-H33,1)),\"\")","v":"2017-05-21"},"ZO",{"$f":"IFERROR((IF(INDEX(Oefeningen[],ExerciseLastEnd-ExerciseRowStart-H33,1)<>\"\",INDEX(Oefeningen[],ExerciseLastEnd-ExerciseRowStart-H33,2),0)),0)","v":40},{"$f":"IFERROR((IF(INDEX(Oefeningen[],ExerciseLastEnd-ExerciseRowStart-H33,2)<>\"\",INDEX(Oefeningen[],ExerciseLastEnd-ExerciseRowStart-H33,3),0)),0)","v":205},9]
[{"$nulls":3},{"$f":"IFERROR(IF(INDEX(Oefeningen[],ExerciseLastEnd-ExerciseRowStart-H34,1)<>\"\",INDEX(Oefeningen[],ExerciseLastEnd-ExerciseRowStart-H34,1)),\"\")","v":"2017-05-20"},"ZA",{"$f":"IFERROR((IF(INDEX(Oefeningen[],ExerciseLastEnd-ExerciseRowStart-H34,1)<>\"\",INDEX(Oefeningen[],ExerciseLastEnd-ExerciseRowStart-H34,2),0)),0)","v":20},{"$f":"IFERROR((IF(INDEX(Oefeningen[],ExerciseLastEnd-ExerciseRowStart-H34,2)<>\"\",INDEX(Oefeningen[],ExerciseLastEnd-ExerciseRowStart-H34,3),0)),0)","v":285},10]
[{"$nulls":3},{"$f":"IFERROR(IF(INDEX(Oefeningen[],ExerciseLastEnd-ExerciseRowStart-H35,1)<>\"\",INDEX(Oefeningen[],ExerciseLastEnd-ExerciseRowStart-H35,1)),\"\")","v":"2017-05-19"},"VR",{"$f":"IFERROR((IF(INDEX(Oefeningen[],ExerciseLastEnd-ExerciseRowStart-H35,1)<>\"\",INDEX(Oefeningen[],ExerciseLastEnd-ExerciseRowStart-H35,2),0)),0)","v":25},{"$f":"IFERROR((IF(INDEX(Oefeningen[],ExerciseLastEnd-ExerciseRowStart-H35,2)<>\"\",INDEX(Oefeningen[],ExerciseLastEnd-ExerciseRowStart-H35,3),0)),0)","v":125},11]
[{"$nulls":3},{"$f":"IFERROR(IF(INDEX(Oefeningen[],ExerciseLastEnd-ExerciseRowStart-H36,1)<>\"\",INDEX(Oefeningen[],ExerciseLastEnd-ExerciseRowStart-H36,1)),\"\")","v":"2017-05-18"},"DO",{"$f":"IFERROR((IF(INDEX(Oefeningen[],ExerciseLastEnd-ExerciseRowStart-H36,1)<>\"\",INDEX(Oefeningen[],ExerciseLastEnd-ExerciseRowStart-H36,2),0)),0)","v":30},{"$f":"IFERROR((IF(INDEX(Oefeningen[],ExerciseLastEnd-ExerciseRowStart-H36,2)<>\"\",INDEX(Oefeningen[],ExerciseLastEnd-ExerciseRowStart-H36,3),0)),0)","v":150},12]